bitfinex/quotes_BTCUSD_20240827
["timestamp","ask_amount","ask_price","bid_price","bid_amount"]
[1724721668832,0.24539085,63257.0,63256.0,1.11699217]
[1724721669031,0.00019085,63257.0,63256.0,1.11699217]
[1724721669322,0.00019085,63257.0,63256.0,1.43316717]
[1724721669741,0.2452,63261.0,63258.0,0.790412]
[1724721669862,0.2452,63261.0,63258.0,1.06959001]
[1724721670077,0.2452,63261.0,63258.0,1.08222394]
[1724721671029,0.2452,63261.0,63258.0,1.10722394]
[1724721671434,0.02477298,63272.0,63258.0,0.31681194]
[1724721671435,0.4406,63259.0,63258.0,0.31681194]
[1724721671645,0.4406,63259.0,63258.0,0.80816293]
[1724721671841,0.4406,63259.0,63258.0,0.49199793]
[1724721672219,0.46537386,63259.0,63258.0,0.49199793]
[1724721672442,0.46537386,63259.0,63258.0,0.80816293]
[1724721673392,0.46537386,63259.0,63258.0,0.05474025]
[1724721673593,0.46537386,63259.0,63258.0,0.03763393]
[1724721674024,0.46537386,63259.0,63258.0,0.50997694]
[1724721674025,0.46537386,63259.0,63258.0,0.67316482]
[1724721674243,0.46537386,63259.0,63258.0,0.68216482]
[1724721674465,0.46537386,63259.0,63258.0,0.99832982]
[1724721674676,0.46537386,63259.0,63258.0,0.68216482]
[1724721674876,0.46537386,63259.0,63258.0,0.36599982]
[1724721675080,0.46537386,63259.0,63258.0,0.05173981]
[1724721675081,0.62345386,63259.0,63258.0,0.05173981]
[1724721675284,0.46537386,63259.0,63258.0,0.02610588]
[1724721675489,0.46537386,63259.0,63258.0,0.02410588]
[1724721675892,0.46537386,63259.0,63258.0,0.02977982]
[1724721676135,0.46537386,63259.0,63258.0,0.03477982]
[1724721676768,0.46537386,63259.0,63258.0,0.35303983]
[1724721677028,0.46628026,63259.0,63258.0,0.17785195]
[1724721677245,0.46628026,63259.0,63258.0,0.19095936]
[1724721677464,0.46628026,63259.0,63258.0,0.34904156]
[1724721678360,0.94052026,63259.0,63258.0,0.01767394]
[1724721678606,1.25668026,63259.0,63258.0,0.009]
[1724721679218,1.25668026,63259.0,63258.0,0.005]
[1724721679405,0.2474,63254.0,63249.0,0.1]
[1724721679626,0.1928,63255.0,63249.0,0.1]
[1724721679627,0.2474,63252.0,63250.0,0.01712943]
[1724721679845,0.2474,63252.0,63251.0,0.01712943]
[1724721680250,0.2474,63252.0,63249.0,0.258104]
[1724721680458,0.2474,63252.0,63251.0,0.01067736]
[1724721680592,0.2474,63252.0,63251.0,0.01713179]
[1724721680796,0.2474,63252.0,63251.0,0.02780915]
[1724721680999,0.405497,63252.0,63251.0,0.02780915]
[1724721681199,0.914492,63252.0,63251.0,0.02780915]
[1724721681399,0.598297,63252.0,63251.0,0.01067736]
[1724721681671,0.598297,63252.0,63249.0,0.1]
[1724721681672,0.2474,63251.0,63250.0,0.005]
[1724721681920,0.2474,63251.0,63250.0,0.02212994]
[1724721682121,0.5983,63251.0,63250.0,0.02212994]
[1724721682322,0.5983,63251.0,63250.0,0.005]
[1724721682552,0.3509,63251.0,63248.0,0.475143]
[1724721682749,0.2474,63250.0,63249.0,0.0171304]
[1724721683337,0.2175799,63251.0,63249.0,0.47238801]
[1724721683338,0.0247799,63251.0,63249.0,0.47238801]
[1724721683537,0.0247799,63251.0,63250.0,1.16939001]
[1724721683773,0.0247799,63251.0,63250.0,1.81892942]
[1724721683972,0.0247799,63251.0,63250.0,1.91892942]
[1724721684163,0.0013064,63259.0,63258.0,1.106577]
[1724721684318,0.0013064,63259.0,63258.0,1.40288442]
[1724721685903,0.0013064,63259.0,63258.0,1.41088442]
[1724721686278,0.0013064,63259.0,63258.0,1.41755633]
[1724721686485,0.0013064,63259.0,63258.0,1.42555633]
[1724721686882,0.0013064,63259.0,63258.0,1.40842692]
[1724721687091,0.0013064,63259.0,63258.0,1.42554583]
[1724721689406,0.0013064,63259.0,63258.0,1.40842692]
[1724721691240,0.0013064,63259.0,63258.0,1.72559192]
[1724721691432,0.0013064,63259.0,63258.0,1.96432818]
[1724721692254,0.19981613,63259.0,63258.0,1.72022818]
[1724721692465,0.44621613,63259.0,63258.0,1.07789818]
[1724721692632,0.44621613,63259.0,63258.0,1.09189818]
[1724721692833,0.44621613,63259.0,63258.0,1.07789818]
[1724721693037,0.24751613,63259.0,63258.0,1.39406318]
[1724721693237,0.00111613,63259.0,63258.0,1.39406318]
[1724721693420,0.00111613,63259.0,63258.0,1.38906318]
[1724721693630,0.00111613,63259.0,63258.0,1.39406318]
[1724721693883,0.00111613,63259.0,63258.0,1.41706318]
[1724721694083,0.00111613,63259.0,63258.0,1.41206318]
[1724721694821,0.00111613,63259.0,63258.0,1.40306318]
[1724721695058,0.00111613,63259.0,63258.0,1.41006318]
[1724721695660,0.00111613,63259.0,63258.0,1.40306318]
[1724721695927,0.00111613,63259.0,63258.0,1.41206318]
[1724721696467,0.00111613,63259.0,63258.0,1.42206318]
[1724721696673,0.00111613,63259.0,63258.0,1.42018021]
[1724721697094,0.00111613,63259.0,63258.0,1.43118021]
[1724721698077,0.00111613,63259.0,63258.0,1.44018021]
[1724721698451,0.00111613,63259.0,63258.0,1.43118021]
[1724721698987,0.00111613,63259.0,63258.0,1.44118021]
[1724721700932,0.00111613,63259.0,63258.0,1.12501521]
[1724721700933,0.22691613,63259.0,63258.0,1.12501521]
[1724721701154,0.22691613,63259.0,63258.0,0.78585021]
[1724721701377,0.22691613,63259.0,63258.0,0.45256818]
[1724721701604,0.41631613,63259.0,63258.0,0.45256818]
[1724721701810,0.41631613,63259.0,63258.0,0.44589627]
[1724721702030,0.41631613,63259.0,63258.0,0.74106127]
[1724721702238,0.41631613,63259.0,63258.0,1.06722627]
[1724721702392,0.41631613,63259.0,63258.0,1.07822627]
[1724721702593,0.41631613,63259.0,63258.0,1.09534812]
[1724721702800,0.41631613,63259.0,63258.0,1.07434812]
[1724721703155,0.41631613,63259.0,63258.0,1.06422627]
[1724721703396,0.41631613,63259.0,63258.0,1.08135243]
[1724721703612,0.41631613,63259.0,63258.0,0.03476242]
[1724721703810,0.89055613,63259.0,63258.0,0.01763626]
[1724721704021,0.57439613,63259.0,63258.0,0.01763626]
[1724721704153,0.57439613,63259.0,63258.0,0.014]
[1724721704376,0.41631613,63259.0,63258.0,0.014]
[1724721704899,0.41631613,63259.0,63258.0,0.02462864]
[1724721706280,0.57439613,63259.0,63258.0,0.02462864]
[1724721707007,0.41631613,63259.0,63258.0,0.02462864]
[1724721709690,0.41631613,63259.0,63258.0,0.49887564]
[1724721709829,0.41631613,63259.0,63258.0,0.81504064]
[1724721710643,0.41631613,63259.0,63258.0,0.49887564]
[1724721711655,0.41631613,63259.0,63258.0,0.18271064]
[1724721711851,0.41631613,63259.0,63258.0,0.49887564]
[1724721712258,0.57439613,63259.0,63258.0,0.02462864]
[1724721713060,0.57439613,63259.0,63258.0,0.02545264]
[1724721713261,0.57439613,63259.0,63258.0,0.01145264]
[1724721713722,0.41631613,63259.0,63258.0,0.01145264]
[1724721714359,0.41631613,63259.0,63258.0,0.01345264]
[1724721714761,0.41631613,63259.0,63258.0,0.01145264]
[1724721714914,0.41631613,63259.0,63258.0,0.01245264]
[1724721715315,0.41631613,63259.0,63258.0,0.01445264]
[1724721715563,0.41631613,63259.0,63258.0,0.01245264]
[1724721716066,0.41631613,63259.0,63258.0,0.01345264]
[1724721716510,0.41631613,63259.0,63258.0,0.32961764]
[1724721716707,0.41631613,63259.0,63258.0,0.48769964]
[1724721717426,0.41631613,63259.0,63258.0,0.80386464]
[1724721717629,0.22691613,63259.0,63258.0,0.80386464]
[1724721718197,0.22691613,63259.0,63258.0,0.96004265]
[1724721718553,0.22691613,63259.0,63258.0,0.97717141]
[1724721718761,0.22691613,63259.0,63258.0,0.99192827]
[1724721718959,0.22691613,63259.0,63258.0,0.97717141]
[1724721720358,0.00111613,63259.0,63258.0,1.29333641]
[1724721720536,0.00111613,63259.0,63258.0,1.33109333]
[1724721720749,0.00111613,63259.0,63258.0,1.3547012]
[1724721720968,0.00111613,63259.0,63258.0,1.33109333]
[1724721721104,0.00111613,63259.0,63258.0,1.31633641]
[1724721721448,0.00111613,63259.0,63258.0,1.33109202]
[1724721721871,0.00111613,63259.0,63258.0,1.33670269]
[1724721722081,0.00111613,63259.0,63258.0,1.3603132]
[1724721722218,0.00111613,63259.0,63258.0,1.3723132]
[1724721722609,0.00111613,63259.0,63258.0,1.3713132]
[1724721722809,0.00111613,63259.0,63258.0,1.3823132]
[1724721723055,0.00111613,63259.0,63258.0,1.4823132]
[1724721727245,0.00111613,63259.0,63258.0,1.44394355]
[1724721727443,0.00111613,63259.0,63258.0,1.79846882]
[1724721728461,0.00111613,63259.0,63258.0,1.84556213]
[1724721730456,0.00111613,63259.0,63258.0,1.84556892]
[1724721730897,0.00111613,63259.0,63258.0,1.83081547]
[1724721731190,0.00111613,63259.0,63258.0,1.86918253]
[1724721732584,0.00111613,63259.0,63258.0,1.82208922]
[1724721734307,0.00111613,63259.0,63258.0,2.42639472]
[1724721734479,0.00111613,63259.0,63258.0,3.08744472]
[1724721735064,0.00111613,63259.0,63258.0,3.19416793]
[1724721735603,0.00111613,63259.0,63258.0,3.14800472]
[1724721735805,0.00111613,63259.0,63258.0,3.06783422]
[1724721736088,0.00111613,63259.0,63258.0,3.05483422]
[1724721736296,0.00111613,63259.0,63258.0,3.16300527]
[1724721736975,0.00111613,63259.0,63258.0,3.16300394]
[1724721740380,0.00111613,63259.0,63258.0,3.16300264]
[1724721741189,0.00111613,63259.0,63258.0,3.06883159]
[1724721742143,0.00111613,63259.0,63258.0,3.17948636]
[1724721742755,0.00111613,63259.0,63258.0,3.29713711]
[1724721742914,0.00111613,63259.0,63258.0,3.17948636]
[1724721743270,0.00111613,63259.0,63258.0,3.29713519]
[1724721743473,0.00111613,63259.0,63258.0,3.27360323]
[1724721743671,0.00111613,63259.0,63258.0,3.27360296]
[1724721743915,0.00111613,63259.0,63258.0,3.2735866]
[1724721744121,0.00111613,63259.0,63258.0,3.17948609]
[1724721744322,0.00111613,63259.0,63258.0,3.27357088]
[1724721745147,0.00111613,63259.0,63258.0,3.17947513]
[1724721745474,0.00111613,63259.0,63258.0,3.25004288]
[1724721747144,0.00111613,63259.0,63258.0,3.21167857]
[1724721747358,0.00111613,63259.0,63258.0,3.2500417]
[1724721750807,0.00111613,63259.0,63258.0,3.18274752]
[1724721751011,0.00111613,63259.0,63258.0,3.2329078]
[1724721751209,0.00111613,63259.0,63258.0,3.25003226]
[1724721752926,0.00111613,63259.0,63258.0,2.89847523]
[1724721753128,0.42381613,63259.0,63258.0,1.62238564]
[1724721753563,0.23591613,63259.0,63258.0,1.93855064]
[1724721753965,0.23591613,63259.0,63258.0,1.92457103]
[1724721754163,0.23591613,63259.0,63258.0,1.91057103]
[1724721754338,0.23591613,63259.0,63258.0,1.91657103]
[1724721754553,0.23591613,63259.0,63258.0,1.92837834]
[1724721754759,0.23591613,63259.0,63258.0,2.12767834]
[1724721754760,0.00111613,63259.0,63258.0,2.12767834]
[1724721755161,0.00111613,63259.0,63258.0,1.95437834]
[1724721755363,0.00111613,63259.0,63258.0,2.27954334]
[1724721755586,0.00111613,63259.0,63258.0,2.25341888]
[1724721755786,0.00111613,63259.0,63258.0,2.25241888]
[1724721756020,0.00111613,63259.0,63258.0,2.26741888]
[1724721756210,0.00111613,63259.0,63258.0,2.25941888]
[1724721756411,0.00111613,63259.0,63258.0,1.94225388]
[1724721756565,0.00111613,63259.0,63258.0,2.05291091]
[1724721756745,0.00111613,63259.0,63258.0,2.03815005]
[1724721757489,0.00111613,63259.0,63258.0,2.05115005]
[1724721757691,0.00111613,63259.0,63258.0,2.01572535]
[1724721758888,0.00111613,63259.0,63258.0,2.06277577]
[1724721759996,0.00111613,63259.0,63258.0,2.01572535]
[1724721760430,0.00111613,63259.0,63258.0,2.06283147]
[1724721760617,0.00111613,63259.0,63258.0,1.90506832]
[1724721760861,0.00111613,63259.0,63258.0,2.03285627]
[1724721761411,0.00111613,63259.0,63258.0,2.01572535]
[1724721761615,0.00111613,63259.0,63258.0,2.0862931]
[1724721761988,0.00111613,63259.0,63258.0,2.06285023]
[1724721762223,0.00111613,63259.0,63258.0,2.06285591]
[1724721762681,0.00111613,63259.0,63258.0,2.01572535]
[1724721763032,0.00111613,63259.0,63258.0,2.06591061]
[1724721763233,0.00111613,63259.0,63258.0,2.08304335]
[1724721763633,0.00111613,63259.0,63258.0,2.1536111]
[1724721764463,0.00111613,63259.0,63258.0,2.50424395]
[1724721765792,0.00111613,63259.0,63258.0,2.4336762]
[1724721766197,0.00111613,63259.0,63258.0,2.3663582]
[1724721766403,0.00111613,63259.0,63258.0,2.43371073]
[1724721766600,0.00111613,63259.0,63258.0,2.41008201]
[1724721766807,0.00111613,63259.0,63258.0,2.4337107]
[1724721767205,0.00111613,63259.0,63258.0,2.43371068]
[1724721767411,0.00111613,63259.0,63258.0,2.43371064]
[1724721769322,0.00111613,63259.0,63258.0,2.52780639]
[1724721769529,0.00111613,63259.0,63258.0,2.46045395]
[1724721769906,0.00111613,63259.0,63258.0,2.52781308]
[1724721770700,0.00111613,63259.0,63258.0,2.52814973]
[1724721772885,0.00111613,63259.0,63258.0,2.84431473]
[1724721773197,0.00111613,63259.0,63258.0,2.52814973]
[1724721775453,0.00111613,63259.0,63258.0,2.52815547]
[1724721775855,0.00111613,63259.0,63258.0,2.47893955]
[1724721776056,0.00111613,63259.0,63258.0,2.50554437]
[1724721776270,0.00111613,63259.0,63258.0,2.84535116]
[1724721776439,0.00111613,63259.0,63258.0,2.82819793]
[1724721776810,0.00111613,63259.0,63258.0,2.75091007]
[1724721777326,0.00111613,63259.0,63258.0,2.75090106]
[1724721778574,0.00111613,63259.0,63258.0,3.15280106]
[1724721780108,0.00111613,63259.0,63258.0,2.92510106]
[1724721780486,0.00111613,63259.0,63258.0,2.75090106]
[1724721780682,0.40551613,63259.0,63258.0,2.44115417]
[1724721780886,0.40551613,63259.0,63258.0,2.5518112]
[1724721781080,0.40551613,63259.0,63258.0,2.52821043]
[1724721781329,0.40551613,63259.0,63258.0,2.84437543]
[1724721781540,0.40551613,63259.0,63258.0,2.52823598]
[1724721782322,0.40551613,63259.0,63258.0,2.84440098]
[1724721782934,0.40551613,63259.0,63258.0,2.52823598]
[1724721783500,0.40551613,63259.0,63258.0,2.84440098]
[1724721783981,0.40551613,63259.0,63258.0,2.84442983]
[1724721784327,0.40551613,63259.0,63258.0,2.52826483]
[1724721784732,0.40551613,63259.0,63258.0,2.84442983]
[1724721785012,0.22361613,63259.0,63258.0,2.84442983]
[1724721785229,0.22361613,63259.0,63258.0,2.84443822]
[1724721785836,0.22361613,63259.0,63258.0,2.84443707]
[1724721786393,0.22361613,63259.0,63258.0,2.52827207]
[1724721786758,0.22361613,63259.0,63258.0,2.84443707]
[1724721787407,0.22361613,63259.0,63258.0,2.52827207]
[1724721787607,0.22361613,63259.0,63258.0,2.55783401]
[1724721788058,0.22361613,63259.0,63258.0,2.58145965]
[1724721788262,0.22361613,63259.0,63258.0,2.89762465]
[1724721788438,0.22361613,63259.0,63258.0,2.77949645]
[1724721788638,0.22361613,63259.0,63258.0,2.77947852]
[1724721789646,0.00111613,63259.0,63258.0,2.77947852]
[1724721790250,0.00111613,63259.0,63258.0,2.78047852]
[1724721791240,0.00111613,63259.0,63258.0,2.78043295]
[1724721793714,0.00111613,63259.0,63258.0,2.78040098]
[1724721794265,0.00111613,63259.0,63258.0,2.79930783]
[1724721794687,0.00111613,63259.0,63258.0,2.74613198]
[1724721794889,0.21311613,63259.0,63258.0,2.79830742]
[1724721795093,0.39491613,63259.0,63258.0,2.68765039]
[1724721795316,0.39491613,63259.0,63258.0,2.79830742]
[1724721795317,0.21311613,63259.0,63258.0,2.79830742]
[1724721795519,0.21311613,63259.0,63258.0,2.79830992]
[1724721798641,0.00111613,63259.0,63258.0,3.11547492]
[1724721798783,0.00111613,63259.0,63258.0,2.79930992]
[1724721799000,0.21311613,63259.0,63258.0,2.79830992]
[1724721799625,0.21311613,63259.0,63258.0,2.89747472]
[1724721799828,0.21311613,63259.0,63258.0,2.77940057]
[1724721800001,0.21311613,63259.0,63258.0,2.89747323]
[1724721800458,0.39491613,63259.0,63258.0,2.32957854]
[1724721800660,0.39491613,63259.0,63258.0,2.32960229]
[1724721801556,0.39491613,63259.0,63258.0,2.31660229]
[1724721801799,0.39491613,63259.0,63258.0,2.32460229]
[1724721802003,0.21311613,63259.0,63258.0,2.78183995]
[1724721802154,0.21311613,63259.0,63258.0,2.76783995]
[1724721802515,0.21311613,63259.0,63258.0,2.77783995]
[1724721802716,0.21311613,63259.0,63258.0,2.75983995]
[1724721803299,0.21311613,63259.0,63258.0,2.76983995]
[1724721803724,0.21311613,63259.0,63258.0,2.75983995]
[1724721803954,0.21311613,63259.0,63258.0,2.77383995]
[1724721804173,0.21311613,63259.0,63258.0,2.78283995]
[1724721804406,0.21311613,63259.0,63258.0,2.78279956]
[1724721804650,0.21311613,63259.0,63258.0,2.78277996]
[1724721804781,0.21311613,63259.0,63258.0,2.77377996]
[1724721805024,0.21311613,63259.0,63258.0,2.78677996]
[1724721805239,0.21311613,63259.0,63258.0,2.77277996]
[1724721805619,0.21311613,63259.0,63258.0,2.77377996]
[1724721805828,0.21311613,63259.0,63258.0,2.78777996]
[1724721806430,0.21311613,63259.0,63258.0,2.77377996]
[1724721806840,0.21311613,63259.0,63258.0,2.78777996]
[1724721807063,0.21311613,63259.0,63258.0,2.77377996]
[1724721807473,0.21311613,63259.0,63258.0,2.78779857]
[1724721809827,0.00111613,63259.0,63258.0,2.78779857]
[1724721810428,0.00198673,63259.0,63258.0,2.78779857]
[1724721812466,0.00198673,63259.0,63258.0,2.68967535]
[1724721812837,0.00198673,63259.0,63258.0,2.6896572]
[1724721813241,0.00198673,63259.0,63258.0,2.83128552]
[1724721813443,0.00198673,63259.0,63258.0,2.8739572]
[1724721814062,0.00198673,63259.0,63258.0,2.87393857]
[1724721814469,0.00198673,63259.0,63258.0,2.75814071]
[1724721814699,0.00198673,63259.0,63258.0,2.87392375]
[1724721815238,0.00198673,63259.0,63258.0,3.01552125]
[1724721815887,0.00198673,63259.0,63258.0,3.19008875]
[1724721816090,0.00198673,63259.0,63258.0,3.331686]
[1724721816372,0.00198673,63259.0,63258.0,3.12617332]
[1724721817433,0.00198673,63259.0,63258.0,3.44233832]
[1724721817583,0.00198673,63259.0,63258.0,3.61696825]
[1724721817787,0.00198673,63259.0,63258.0,3.12614737]
[1724721818741,0.00198673,63259.0,63258.0,2.98455973]
[1724721819081,0.00198673,63259.0,63258.0,2.8739027]
[1724721819277,0.21918673,63259.0,63258.0,2.80025973]
[1724721820751,0.63243,63248.0,63246.0,0.09443282]
[1724721820962,0.002,63243.0,63225.0,0.01183591]
[1724721821175,0.11065703,63234.0,63225.0,0.01183591]
[1724721821386,0.11065703,63234.0,63225.0,0.003]
[1724721821387,0.158148,63232.0,63225.0,0.003]
[1724721821653,0.158152,63231.0,63219.0,0.15700101]
[1724721821858,0.2281,63233.0,63224.0,0.11065703]
[1724721822064,0.2281,63233.0,63221.0,0.158174]
[1724721822278,0.25288475,63233.0,63226.0,0.003]
[1724721822483,0.25375535,63233.0,63226.0,0.003]
[1724721822680,0.25375535,63233.0,63225.0,0.003]
[1724721824456,0.25375535,63233.0,63219.0,0.159001]
[1724721824671,0.2281,63232.0,63225.0,0.003]
[1724721824894,0.386248,63232.0,63225.0,0.003]
[1724721825316,0.386248,63232.0,63225.0,0.011]
[1724721825544,0.3871186,63232.0,63225.0,0.003]
[1724721825942,0.3881186,63232.0,63226.0,0.006]
[1724721826293,0.3881186,63232.0,63227.0,0.15617801]
[1724721826294,0.2299706,63232.0,63227.0,0.15617801]
[1724721826881,0.2309706,63232.0,63227.0,0.15617801]
[1724721827084,0.2299706,63232.0,63227.0,0.15617801]
[1724721827280,0.2289706,63232.0,63227.0,0.15617801]
[1724721827486,0.2299706,63232.0,63227.0,0.16317801]
[1724721828475,0.2299706,63232.0,63228.0,0.003]
[1724721828607,0.2299706,63232.0,63227.0,0.16317801]
[1724721829071,0.2309706,63232.0,63227.0,0.17217801]
[1724721829198,0.2309706,63232.0,63227.0,0.16317801]
[1724721829399,0.2299706,63232.0,63227.0,0.15617801]
[1724721829605,0.2319706,63232.0,63228.0,0.016]
[1724721829830,0.2299706,63232.0,63228.0,0.007]
[1724721830231,0.2289706,63232.0,63228.0,0.003]
[1724721830504,0.2299706,63232.0,63228.0,0.003]
[1724721830881,0.2309706,63232.0,63228.0,0.003]
[1724721831787,0.2299706,63232.0,63228.0,0.003]
[1724721831967,0.2289706,63232.0,63228.0,0.003]
[1724721832173,0.2299706,63232.0,63228.0,0.01]
[1724721832416,0.2309706,63232.0,63228.0,0.019]
[1724721833594,0.15796069,63231.0,63228.0,0.019]
[1724721834394,0.158155,63229.0,63228.0,0.016]
[1724721834593,0.158155,63229.0,63228.0,0.019]
[1724721834594,0.1590256,63229.0,63228.0,0.019]
[1724721834970,0.0008706,63229.0,63228.0,0.003]
[1724721835158,0.0008706,63229.0,63228.0,0.008]
[1724721835294,0.0008706,63229.0,63228.0,0.018]
[1724721835510,0.0008706,63229.0,63228.0,0.011]
[1724721835710,0.0008706,63229.0,63228.0,0.003]
[1724721835917,0.0028706,63229.0,63228.0,0.026]
[1724721837898,0.0028706,63229.0,63228.0,0.83665001]
[1724721838072,0.4771,63253.0,63241.0,0.316246]
[1724721838073,0.2175,63247.0,63241.0,0.316246]
[1724721838275,0.2175,63247.0,63244.0,0.158116]
[1724721838795,0.2175,63247.0,63242.0,0.15812]
[1724721839360,0.0009064,63244.0,63242.0,0.15812]
[1724721840138,0.0009064,63244.0,63243.0,0.31429801]
[1724721840340,0.0009064,63244.0,63243.0,0.63053801]
[1724721841308,0.0009064,63244.0,63243.0,0.31429801]
[1724721842128,0.0059064,63244.0,63243.0,0.31429801]
[1724721842528,0.0009064,63244.0,63243.0,0.31429801]
[1724721842930,0.0099064,63244.0,63243.0,0.63053801]
[1724721844334,0.0099064,63244.0,63235.0,0.530877]
[1724721844335,0.2175,63242.0,63224.0,0.1]
[1724721844492,0.2175,63234.0,63228.0,0.15617801]
[1724721844696,0.2175,63234.0,63229.0,0.1]
[1724721845092,0.158147,63233.0,63229.0,0.1]
[1724721845700,0.2175,63234.0,63229.0,0.1]
[1724721845998,0.2175,63234.0,63229.0,0.258155]
[1724721846245,0.375643,63234.0,63229.0,0.258155]
[1724721846419,0.375643,63234.0,63230.0,0.158151]
[1724721846420,0.001,63233.0,63230.0,0.158151]
[1724721846621,0.001,63233.0,63229.0,0.106]
[1724721846831,0.001,63233.0,63230.0,0.158151]
[1724721847039,0.2185,63234.0,63230.0,0.158151]
[1724721847703,0.2175,63234.0,63231.0,0.15815]
[1724721849090,0.001,63233.0,63231.0,0.16315]
[1724721849302,0.2175,63234.0,63231.0,0.16315]
[1724721849658,0.2185,63234.0,63231.0,0.17015]
[1724721850116,0.2175,63234.0,63231.0,0.15815]
[1724721850427,0.002,63233.0,63231.0,0.17215]
[1724721850659,0.001,63233.0,63231.0,0.006]
[1724721851078,0.466047,63232.0,63231.0,0.013]
[1724721851695,0.3079,63232.0,63231.0,0.007]
[1724721852097,0.466047,63232.0,63231.0,0.007]
[1724721852301,0.466047,63232.0,63227.0,0.158983]
[1724721852302,0.2601,63232.0,63227.0,0.158982]
[1724721852458,0.2601,63232.0,63231.0,0.013]
[1724721852866,0.2601,63232.0,63227.0,0.158982]
[1724721853154,0.2611,63232.0,63231.0,0.009]
[1724721853318,0.2621,63232.0,63231.0,0.016]
[1724721853886,0.2611,63232.0,63231.0,0.007]
[1724721854218,0.2621,63232.0,63231.0,0.007]
[1724721854631,0.2611,63232.0,63228.0,0.158156]
[1724721855094,0.2621,63232.0,63228.0,0.158156]
[1724721855598,0.2601,63232.0,63228.0,0.158156]
[1724721855739,0.2611,63232.0,63231.0,0.009]
[1724721855923,0.2621,63232.0,63231.0,0.009]
[1724721856140,0.2611,63232.0,63229.0,0.158155]
[1724721856590,0.26190969,63232.0,63229.0,0.158155]
[1724721856764,0.26090969,63232.0,63229.0,0.158155]
[1724721857646,0.26090969,63232.0,63231.0,0.009]
[1724721858277,0.26190969,63232.0,63231.0,0.016]
[1724721859076,0.26090969,63232.0,63231.0,0.007]
[1724721859460,0.26190969,63232.0,63231.0,0.007]
[1724721859891,0.26190969,63232.0,63231.0,0.48145]
[1724721860127,0.003,63232.0,63231.0,0.17415]
[1724721860542,0.003,63232.0,63231.0,0.49045]
[1724721862982,0.003,63232.0,63231.0,0.491274]
[1724721863587,0.04161006,63232.0,63231.0,0.491274]
[1724721868129,0.003,63232.0,63231.0,0.491274]
[1724721868336,0.04161006,63232.0,63231.0,0.491274]
[1724721869377,0.01785002,63232.0,63231.0,0.491274]
[1724721869586,0.04161006,63232.0,63231.0,0.491274]
[1724721870007,0.01785003,63232.0,63231.0,0.491274]
[1724721870408,0.04161007,63232.0,63231.0,0.491274]
[1724721875630,0.04251647,63232.0,63231.0,0.491274]
[1724721876039,0.04251646,63232.0,63231.0,0.491274]
[1724721878404,0.04251646,63232.0,63231.0,0.807574]
[1724721878619,0.04251646,63232.0,63231.0,1.046074]
[1724721878813,0.04251646,63232.0,63231.0,0.729774]
[1724721879716,0.0039064,63232.0,63231.0,0.729774]
[1724721879894,0.04251637,63232.0,63231.0,0.729774]
[1724721883085,0.04251637,63232.0,63231.0,1.046074]
[1724721884287,0.04251637,63232.0,63231.0,0.807574]
[1724721884803,0.01875639,63232.0,63231.0,0.807574]
[1724721885990,0.0039064,63232.0,63231.0,0.807574]
[1724721886281,0.01875639,63232.0,63231.0,0.807574]
[1724721887630,0.01875639,63232.0,63231.0,0.491274]
[1724721890544,0.0039064,63232.0,63231.0,0.491274]
[1724721891746,0.0039064,63232.0,63231.0,0.807574]
[1724721893281,0.0039064,63232.0,63231.0,0.491274]
[1724721895017,0.2575064,63232.0,63231.0,0.491274]
[1724721897553,0.0039064,63232.0,63231.0,0.491274]
[1724721900376,0.00371606,63232.0,63231.0,0.491274]
[1724721901342,0.00371606,63232.0,63231.0,0.807574]
[1724721902924,0.00371606,63232.0,63231.0,0.91839155]
[1724721903124,0.00371606,63232.0,63231.0,1.83436956]
[1724721903325,0.00371606,63232.0,63231.0,2.59809166]
[1724721903553,0.00371606,63232.0,63231.0,2.59867126]
[1724721903765,0.00371606,63232.0,63231.0,2.52642482]
[1724721903976,0.00371606,63232.0,63231.0,2.64478772]
[1724721904176,0.0029064,63232.0,63231.0,2.51942482]
[1724721904350,0.0019064,63232.0,63231.0,2.51042482]
[1724721904570,0.0019064,63232.0,63231.0,2.6119724]
[1724721904694,0.0019064,63232.0,63231.0,2.9292724]
[1724721904889,0.0009064,63232.0,63231.0,2.51142482]
[1724721905714,0.0009064,63232.0,63231.0,2.30591816]
[1724721905985,0.0009064,63232.0,63231.0,2.25866956]
[1724721906470,0.0019064,63232.0,63231.0,2.28166956]
[1724721906631,0.0019064,63232.0,63231.0,2.27166956]
[1724721906825,0.0009064,63232.0,63231.0,2.25866956]
[1724721907027,0.0009064,63232.0,63231.0,2.27266956]
[1724721907287,0.0009064,63232.0,63231.0,2.28666956]
[1724721908144,0.0009064,63232.0,63231.0,2.45272933]
[1724721912982,0.0009064,63232.0,63231.0,2.46989387]
[1724721915963,0.0009064,63232.0,63231.0,2.48172516]
[1724721916204,0.0009064,63232.0,63231.0,2.46989387]
[1724721917689,0.0009064,63232.0,63231.0,2.51590338]
[1724721919737,0.0009064,63232.0,63231.0,2.46989387]
[1724721922631,0.0009064,63232.0,63231.0,2.46953487]
[1724721924872,0.0009064,63232.0,63231.0,1.58995755]
[1724721925065,0.3032064,63232.0,63231.0,0.20413854]
[1724721925268,0.3032064,63232.0,63231.0,0.52043854]
[1724721925545,0.0009064,63232.0,63231.0,1.18083066]
[1724721925770,0.0009064,63232.0,63231.0,1.14665201]
[1724721925977,0.0009064,63232.0,63231.0,1.46612887]
[1724721926156,0.0009064,63232.0,63231.0,1.47712887]
[1724721926350,0.0009064,63232.0,63231.0,1.47412887]
[1724721926550,0.0009064,63232.0,63231.0,1.49712887]
[1724721926723,0.0009064,63232.0,63231.0,1.49112887]
[1724721926928,0.0009064,63232.0,63231.0,1.49212887]
[1724721927251,0.0009064,63232.0,63231.0,1.49812887]
[1724721927455,0.0009064,63232.0,63231.0,1.49512887]
[1724721927613,0.0009064,63232.0,63231.0,1.49212887]
[1724721927823,0.0009064,63232.0,63231.0,1.49112887]
[1724721928234,0.0009064,63232.0,63231.0,1.49412887]
[1724721928480,0.0009064,63232.0,63231.0,1.15482887]
[1724721928784,0.0009064,63232.0,63231.0,1.13465201]
[1724721928916,0.0009064,63232.0,63231.0,1.45395201]
[1724721929114,0.0009064,63232.0,63231.0,1.48912567]
[1724721929436,0.0009064,63232.0,63231.0,1.30422567]
[1724721929634,0.0009064,63232.0,63231.0,0.99792567]
[1724721930201,0.0009064,63232.0,63231.0,0.99492567]
[1724721930444,0.0009064,63232.0,63231.0,1.31122567]
[1724721930649,0.0009064,63232.0,63231.0,1.31422567]
[1724721930855,0.0009064,63232.0,63231.0,1.31122567]
[1724721932303,0.0009064,63232.0,63231.0,1.09153577]
[1724721932502,0.0009064,63232.0,63231.0,1.10870728]